[Event "FIDE WCCC Open-12 2024"]
[Site "Montesilvano"]
[Date "2024.11.25"]
[Round "10.61"]
[White "Pennacchia, Domenico"]
[Black "Italiani, Luca"]
[Result "1-0"]
[ECO "A46"]
[WhiteElo "1510"]
[BlackElo "1634"]
[Annotator "NA RC"]
[PlyCount "193"]
[EventDate "2024.11.18"]
[EventType "swiss"]
[EventCountry "ITA"]
[SourceTitle "playchess.com"]
[Source "ChessBase"]
[SourceQuality "1"]
[TimeControl "5400+30"]

1. d4 {[%emt 0:00:04]} Nf6 {[%emt 0:00:03]} 2. Nf3 {[%emt 0:00:08]} e6 {[%emt 0:00:04]} 3. e3 {[%emt 0:00:06]} Nc6 {[%emt 0:00:07]} 4. Bd3 {[%emt 0:00:11]} Be7 {[%emt 0:00:07]} 5. c3 {[%emt 0:00:05]} O-O {[%emt 0:00:06]} 6. Nbd2 {[%emt 0:00:04]} d5 {[%emt 0:00:08]} 7. b3 {[%emt 0:00:10]} a6 {[%emt 0:00:06]} 8. Bb2 {[%emt 0:00:08]} h6 {[%emt 0:00:07]} 9. O-O {[%emt 0:00:07]} Re8 {[%emt 0:00:17]} 10. Rc1 {[%emt 0:00:33]} Bf8 {[%emt 0:00:28]} 11. c4 {[%emt 0:00:26]} Nb4 {[%emt 0:00:16]} 12. Bb1 {[%emt 0:00:19]} dxc4 {[%emt 0:01:23]} 13. Nxc4 {[%emt 0:00:22]} b5 {[%emt 0:00:27]} 14. Nce5 {[%emt 0:00:28]} Bb7 {[%emt 0:01:56]} 15. a3 {[%emt 0:00:37]} Nbd5 {[%emt 0:00:25]} 16. Qc2 {[%emt 0:00:38]} Rc8 {[%emt 0:04:01]} 17. b4 {[%emt 0:02:03]} Nb6 {[%emt 0:01:10]} 18. Ng4 {[%emt 0:00:45]} g6 {[%emt 0:04:12]} 19. Nxf6+ {[%emt 0:01:01]} Qxf6 {[%emt 0:00:11]} 20. d5 {[%emt 0:01:42]} e5 {[%emt 0:08:20]} 21. e4 {[%emt 0:01:14]} Nc4 {[%emt 0:00:18]} 22. Nd2 {[%emt 0:03:41]} Nxb2 {[%emt 0:00:25]} 23. Qxb2 {[%emt 0:03:26]} Bd6 {[%emt 0:03:44]} 24. Nb3 {[%emt 0:02:49]} Qg5 {[%emt 0:03:01]} 25. Nc5 {[%emt 0:03:47]} Bxc5 {[%emt 0:01:12]} 26. bxc5 {[%emt 0:01:28]} c6 {[%emt 0:01:54]} 27. d6 {[%emt 0:00:12]} Rcd8 {[%emt 0:00:45]} 28. Rcd1 {[%emt 0:01:12]} Bc8 {[%emt 0:00:30]} 29. Rd3 {[%emt 0:02:27]} h5 {[%emt 0:01:01]} 30. Rg3 {[%emt 0:01:02]} Qf4 {[%emt 0:04:00]} 31. Rf3 {[%emt 0:01:36]} Qg5 {[%emt 0:02:24]} 32. Ba2 {[%emt 0:01:22]} Be6 {[%emt 0:00:34]} 33. Bxe6 {[%emt 0:00:07]} Rxe6 {[%emt 0:01:55]} 34. Rd1 {[%emt 0:04:06]} h4 {[%emt 0:02:06]} 35. Qd2 {[%emt 0:02:21]} Qxd2 {[%emt 0:01:52]} 36. Rxd2 {[%emt 0:00:39]} Kg7 {[%emt 0:01:20]} 37. Kf1 {[%emt 0:00:21]} Rf6 {[%emt 0:00:50]} 38. Rfd3 {[%emt 0:00:38]} Re6 {[%emt 0:01:33]} 39. d7 {[%emt 0:03:12]} a5 {[%emt 0:02:27]} 40. Rd6 {[%emt 0:01:24]} Kf6 {[%emt 0:00:21]} 41. Rxe6+ {[%emt 0:00:27]} Kxe6 {[%emt 0:00:18]} 42. Rd6+ {[%emt 0:00:06]} Ke7 {[%emt 0:00:06]} 43. Rxc6 {[%emt 0:00:11]} Rxd7 {[%emt 0:00:06]} 44. Rb6 {[%emt 0:00:09]} Rd1+ {[%emt 0:00:12]} 45. Ke2 {[%emt 0:00:08]} Rb1 {[%emt 0:02:09]} 46. Rb7+ {[%emt 0:01:04]} Ke6 {[%emt 0:02:12]} 47. Ra7 {[%emt 0:01:24]} a4 {[%emt 0:01:09]} 48. Rb7 {[%emt 0:01:15]} Rb2+ {[%emt 0:02:09]} 49. Kf3 {[%emt 0:01:21]} Rb3+ {[%emt 0:00:49]} 50. Kg4 {[%emt 0:00:21]} Rxa3 {[%emt 0:00:06]} 51. Rxb5 {[%emt 0:00:09]} Rb3 {[%emt 0:00:42]} 52. Ra5 {[%emt 0:00:26]} Ra3 {[%emt 0:02:33]} 53. Kxh4 {[%emt 0:01:13]} Ra1 {[%emt 0:00:09]} 54. c6 {[%emt 0:01:09]} Kd6 {[%emt 0:00:22]} 55. Rc5 {[%emt 0:00:22]} Kc7 {[%emt 0:00:35]} 56. Rxe5 {[%emt 0:00:26]} Kxc6 {[%emt 0:00:05]} 57. Ra5 {[%emt 0:00:59]} a3 {[%emt 0:00:25]} 58. f3 {[%emt 0:00:46]} a2 {[%emt 0:00:09]} 59. Kg5 {[%emt 0:00:11]} Kb6 {[%emt 0:00:10]} 60. Ra8 {[%emt 0:00:16]} Kb5 {[%emt 0:00:27]} 61. Kf6 {[%emt 0:00:07]} Kb4 {[%emt 0:00:18]} 62. Kxf7 {[%emt 0:00:12]} Kb3 {[%emt 0:00:16]} 63. Rb8+ {[%emt 0:00:32]} Kc2 {[%emt 0:00:42]} 64. Ra8 {[%emt 0:00:33]} Kb2 {[%emt 0:00:50]} 65. e5 {[%emt 0:00:46]} Rc1 {[%emt 0:04:31]} 66. e6 {[%emt 0:00:13]} Rc7+ {[%emt 0:00:20]} 67. e7 {[%emt 0:00:09]} a1=Q {[%emt 0:46:04]} 68. Rxa1 {[%emt 0:00:05]} Kxa1 {[%emt 0:00:00]} 69. Kf8 {[%emt 0:00:05]} Rc8+ {[%emt 0:00:00]} 70. e8=Q {[%emt 0:00:07]} Rxe8+ {[%emt 0:00:00]} 71. Kxe8 {[%emt 0:00:06]} g5 {[%emt 0:00:00]} 72. Kf7 {[%emt 0:00:19]} Kb2 {[%emt 0:00:00]} 73. Kg6 {[%emt 0:00:07]} Kc3 {[%emt 0:00:00]} 74. Kxg5 {[%emt 0:00:07]} Kd4 {[%emt 0:00:00]} 75. f4 {[%emt 0:00:13]} Kd5 {[%emt 0:00:00]} 76. f5 {[%emt 0:00:21]} Kd6 {[%emt 0:00:00]} 77. Kg6 {[%emt 0:00:17]} Ke7 {[%emt 0:00:00]} 78. f6+ {[%emt 0:00:14]} Kf8 {[%emt 0:00:00]} 79. f7 {[%emt 0:00:12]} Ke7 {[%emt 0:00:00]} 80. Kg7 {[%emt 0:00:04]} Ke6 {[%emt 0:00:00]} 81. f8=Q {[%emt 0:00:11]} Ke5 {[%emt 0:07:00]} 82. Qf6+ {[%emt 0:00:13]} Kd5 {[%emt 0:00:00]} 83. Qe7 {[%emt 0:00:11]} Kd4 {[%emt 0:00:00]} 84. Qe2 {[%emt 0:00:10]} Kd5 {[%emt 0:00:00]} 85. Qe3 {[%emt 0:00:05]} Kc4 {[%emt 0:00:00]} 86. Qd2 {[%emt 0:00:09]} Kc5 {[%emt 0:00:00]} 87. Qd3 {[%emt 0:00:07]} Kc6 {[%emt 0:00:00]} 88. Qd4 {[%emt 0:00:04]} Kb5 {[%emt 0:00:00]} 89. Qc3 {[%emt 0:00:09]} Kb6 {[%emt 0:00:00]} 90. Qc4 {[%emt 0:00:10]} Kb7 {[%emt 0:00:00]} 91. Qc5 {[%emt 0:00:06]} Ka8 {[%emt 0:00:00]} 92. Qb5 {[%emt 0:00:05]} Ka7 {[%emt 0:00:00]} 93. Kf6 {[%emt 0:00:15]} Ka8 {[%emt 0:00:00]} 94. Ke6 {[%emt 0:00:05]} Ka7 {[%emt 0:00:00]} 95. Kd6 {[%emt 0:00:05]} Ka8 {[%emt 0:00:00]} 96. Kc7 {[%emt 0:00:05]} Ka7 {[%emt 0:00:00]} 97. Qb7# {[%emt 0:00:34]} 1-0

[Event "FIDE WCCC Open-12 2024"]
[Site "Montesilvano"]
[Date "2024.11.25"]
[Round "10.64"]
[White "Sobirov, Feruzbek"]
[Black "Macia Tell, Dario"]
[Result "1-0"]
[ECO "D00"]
[WhiteElo "1487"]
[BlackElo "1520"]
[Annotator "NA RC"]
[PlyCount "69"]
[EventDate "2024.11.18"]
[EventType "swiss"]
[EventCountry "ITA"]
[SourceTitle "playchess.com"]
[Source "ChessBase"]
[SourceQuality "1"]
[TimeControl "5400+30"]

1. d4 {[%emt 0:00:22]} Nf6 {[%emt 0:00:06]} 2. Nc3 {[%emt 0:00:05]} d5 {[%emt 0:00:06]} 3. Bf4 {[%emt 0:00:41]} Bf5 {[%emt 0:00:09]} 4. f3 {[%emt 0:00:06]} e6 {[%emt 0:00:08]} 5. g4 {[%emt 0:00:04]} Bg6 {[%emt 0:00:07]} 6. h4 {[%emt 0:00:07]} h5 {[%emt 0:00:04]} 7. g5 {[%emt 0:00:05]} Ng8 {[%emt 0:00:04]} 8. e3 {[%emt 0:00:56]} Bd6 {[%emt 0:00:10]} 9. Nge2 {[%emt 0:00:22]} Ne7 {[%emt 0:01:08]} 10. Bxd6 {[%emt 0:02:06]} Qxd6 {[%emt 0:01:21]} 11. Nf4 {[%emt 0:00:10]} O-O {[%emt 0:00:44]} 12. Bd3 {[%emt 0:00:13]} Nbc6 {[%emt 0:01:15]} 13. Qd2 {[%emt 0:02:33]} Nf5 {[%emt 0:05:13]} 14. O-O-O {[%emt 0:02:46]} a6 {[%emt 0:01:03]} 15. Bxf5 {[%emt 0:04:16]} exf5 {[%emt 0:00:28]} 16. Ncxd5 {[%emt 0:00:52]} b5 {[%emt 0:00:15]} 17. Qc3 {[%emt 0:01:17]} b4 {[%emt 0:05:42]} 18. Qxc6 {[%emt 0:00:13]} Qd8 {[%emt 0:01:29]} 19. Qxc7 {[%emt 0:00:31]} Qe8 {[%emt 0:00:28]} 20. Qe7 {[%emt 0:01:16]} Qa4 {[%emt 0:00:12]} 21. Nb6 {[%emt 0:02:12]} Rae8 {[%emt 0:00:58]} 22. Nxa4 {[%emt 0:01:27]} Rxe7 {[%emt 0:01:34]} 23. Rhe1 {[%emt 0:01:45]} a5 {[%emt 0:01:47]} 24. d5 {[%emt 0:00:21]} Rd8 {[%emt 0:05:38]} 25. Nc5 {[%emt 0:01:32]} Rd6 {[%emt 0:08:44]} 26. Nxg6 {[%emt 0:01:38]} fxg6 {[%emt 0:00:28]} 27. e4 {[%emt 0:00:05]} fxe4 {[%emt 0:09:00]} 28. fxe4 {[%emt 0:00:06]} Re5 {[%emt 0:26:24]} 29. Nb7 {[%emt 0:00:07]} Rd7 {[%emt 0:02:39]} 30. Nxa5 {[%emt 0:00:08]} Rd6 {[%emt 0:07:26]} 31. Nc6 {[%emt 0:00:07]} Re8 {[%emt 0:02:18]} 32. e5 {[%emt 0:00:04]} Rxc6 {[%emt 0:01:18]} 33. dxc6 {[%emt 0:00:07]} Rc8 {[%emt 0:00:04]} 34. e6 {[%emt 0:00:07]} Kf8 {[%emt 0:00:04]} 35. e7+ {[%emt 0:00:11]} 1-0

[Event "FIDE WCCC Open-12 2024"]
[Site "Montesilvano"]
[Date "2024.11.25"]
[Round "10.66"]
[White "Lenoks, Martin Jr."]
[Black "Stefanov, Stefan"]
[Result "1-0"]
[ECO "B11"]
[WhiteElo "1514"]
[BlackElo "1478"]
[Annotator "NA RC"]
[PlyCount "85"]
[EventDate "2024.11.18"]
[EventType "swiss"]
[EventCountry "ITA"]
[SourceTitle "playchess.com"]
[Source "ChessBase"]
[SourceQuality "1"]
[TimeControl "5400+30"]

1. e4 {[%emt 0:00:01]} c6 {[%emt 0:00:05]} 2. Nc3 {[%emt 0:00:30]} d5 {[%emt 0:00:17]} 3. Nf3 {[%emt 0:00:07]} Bg4 {[%emt 0:00:07]} 4. exd5 {[%emt 0:00:10]} cxd5 {[%emt 0:00:11]} 5. d4 {[%emt 0:00:09]} e6 {[%emt 0:00:28]} 6. a3 {[%emt 0:00:14]} Nc6 {[%emt 0:00:14]} 7. Bb5 {[%emt 0:00:21]} Nf6 {[%emt 0:00:47]} 8. h3 {[%emt 0:00:10]} Bxf3 {[%emt 0:00:47]} 9. Qxf3 {[%emt 0:00:17]} Be7 {[%emt 0:00:23]} 10. Be3 {[%emt 0:01:31]} O-O {[%emt 0:00:34]} 11. O-O {[%emt 0:00:04]} a6 {[%emt 0:00:29]} 12. Bxc6 {[%emt 0:00:17]} bxc6 {[%emt 0:00:10]} 13. Rfe1 {[%emt 0:00:30]} Rb8 {[%emt 0:02:58]} 14. Rab1 {[%emt 0:00:17]} Qd7 {[%emt 0:00:40]} 15. Qg3 {[%emt 0:05:17]} Nh5 {[%emt 0:07:46]} 16. Qe5 {[%emt 0:02:33]} g6 {[%emt 0:03:05]} 17. Bh6 {[%emt 0:02:51]} Bf6 {[%emt 0:04:34]} 18. Qe3 {[%emt 0:03:25]} Rfd8 {[%emt 0:02:01]} 19. Ne2 {[%emt 0:02:05]} Qe7 {[%emt 0:16:27]} 20. g4 {[%emt 0:09:21]} Ng7 {[%emt 0:02:15]} 21. g5 {[%emt 0:00:22]} Be5 {[%emt 0:20:13]} 22. Qxe5 {[%emt 0:00:35]} Nf5 {[%emt 0:01:13]} 23. Ng3 {[%emt 0:01:30]} Nxh6 {[%emt 0:01:06]} 24. gxh6 {[%emt 0:00:07]} Qf8 {[%emt 0:00:41]} 25. Qg5 {[%emt 0:00:57]} f6 {[%emt 0:00:54]} 26. Qh4 {[%emt 0:00:50]} Qf7 {[%emt 0:00:30]} 27. Qg4 {[%emt 0:01:00]} f5 {[%emt 0:00:36]} 28. Qg5 {[%emt 0:00:22]} Rf8 {[%emt 0:01:07]} 29. f4 {[%emt 0:00:58]} Qa7 {[%emt 0:00:49]} 30. c3 {[%emt 0:00:49]} c5 {[%emt 0:01:24]} 31. Ne2 {[%emt 0:02:26]} cxd4 {[%emt 0:01:00]} 32. Nxd4 {[%emt 0:01:40]} Rbe8 {[%emt 0:02:21]} 33. h4 {[%emt 0:01:12]} Kh8 {[%emt 0:00:41]} 34. Rbd1 {[%emt 0:00:30]} Qb6 {[%emt 0:01:22]} 35. Rd2 {[%emt 0:00:10]} Qa7 {[%emt 0:01:10]} 36. Rg2 {[%emt 0:00:26]} e5 {[%emt 0:00:35]} 37. Rxe5 {[%emt 0:01:05]} Rxe5 {[%emt 0:00:10]} 38. fxe5 {[%emt 0:00:04]} f4 {[%emt 0:00:29]} 39. Rf2 {[%emt 0:00:55]} Qf7 {[%emt 0:04:44]} 40. e6 {[%emt 0:01:20]} Qe8 {[%emt 0:01:56]} 41. Qe5+ {[%emt 0:00:23]} Rf6 {[%emt 0:00:46]} 42. Qxf6+ {[%emt 0:00:06]} Kg8 {[%emt 0:00:16]} 43. Qg7# {[%emt 0:00:05]} 1-0

[Event "FIDE WCCC Open-12 2024"]
[Site "Montesilvano"]
[Date "2024.11.25"]
[Round "10.67"]
[White "Mamarasulov, Husan"]
[Black "Maari Kelly Sosi"]
[Result "1-0"]
[ECO "D50"]
[WhiteElo "1407"]
[BlackElo "1587"]
[Annotator "NA RC"]
[PlyCount "70"]
[EventDate "2024.11.18"]
[EventType "swiss"]
[EventCountry "ITA"]
[SourceTitle "playchess.com"]
[Source "ChessBase"]
[SourceQuality "1"]
[TimeControl "5400+30"]

1. d4 {[%emt 0:00:02]} d5 {[%emt 0:00:07]} 2. c4 {[%emt 0:00:03]} e6 {[%emt 0:00:14]} 3. Nc3 {[%emt 0:00:02]} Nf6 {[%emt 0:00:14]} 4. Bg5 {[%emt 0:00:04]} Bb4 {[%emt 0:00:16]} 5. e3 {[%emt 0:01:17]} Nc6 {[%emt 0:00:56]} 6. Bd3 {[%emt 0:01:05]} Bd7 {[%emt 0:00:11]} 7. Nge2 {[%emt 0:00:43]} h6 {[%emt 0:00:08]} 8. Bxf6 {[%emt 0:00:20]} Qxf6 {[%emt 0:00:19]} 9. a3 {[%emt 0:00:30]} Bxc3+ {[%emt 0:00:17]} 10. Nxc3 {[%emt 0:00:06]} dxc4 {[%emt 0:00:29]} 11. Bxc4 {[%emt 0:00:13]} O-O {[%emt 0:00:08]} 12. O-O {[%emt 0:03:34]} Rfe8 {[%emt 0:00:24]} 13. Ne4 {[%emt 0:01:40]} Qd8 {[%emt 0:00:15]} 14. Nc5 {[%emt 0:06:07]} Na5 {[%emt 0:00:52]} 15. Bd3 {[%emt 0:01:53]} b6 {[%emt 0:04:16]} 16. Nxd7 {[%emt 0:00:24]} Qxd7 {[%emt 1:29:24]} 17. b4 {[%emt 1:20:57]} Nb7 {[%emt 0:00:00]} 18. Be4 {[%emt 0:00:00]} Rab8 {[%emt 0:00:00]} 19. Qf3 {[%emt 0:00:00]} Nd6 {[%emt 0:00:00]} 20. Bc6 {[%emt 0:00:00]} Qd8 {[%emt 0:00:00]} 21. Bxe8 {[%emt 0:00:00]} Qxe8 {[%emt 0:00:00]} 22. e4 {[%emt 0:00:00]} Nc4 {[%emt 0:00:00]} 23. Qc3 {[%emt 0:03:00]} b5 {[%emt 0:00:00]} 24. e5 {[%emt 0:00:00]} Qd7 {[%emt 0:00:00]} 25. a4 {[%emt 0:00:00]} Qe8 {[%emt 0:00:00]} 26. axb5 {[%emt 0:00:00]} Qxb5 {[%emt 0:00:00]} 27. Rfc1 {[%emt 0:00:00]} Nb6 {[%emt 0:00:00]} 28. Qxc7 {[%emt 0:00:00]} Nd5 {[%emt 0:00:00]} 29. Qxa7 {[%emt 0:00:00]} Qxb4 {[%emt 0:00:00]} 30. Qc5 {[%emt 0:00:00]} Qb7 {[%emt 0:00:00]} 31. Qc2 {[%emt 0:00:00]} Nf4 {[%emt 0:00:00]} 32. f3 {[%emt 0:00:00]} Nd5 {[%emt 0:00:00]} 33. Rab1 {[%emt 0:00:00]} Qa7 {[%emt 0:00:00]} 34. Rxb8+ {[%emt 0:00:00]} Qxb8 {[%emt 0:00:00]} 35. Qc8+ {[%emt 0:00:00]} Qxc8 {[%emt 0:00:00]} 1-0

[Event "FIDE WCCC Open-12 2024"]
[Site "Montesilvano"]
[Date "2024.11.25"]
[Round "10.71"]
[White "Lin, Alex Y"]
[Black "Sharafutdinov, Timur"]
[Result "0-1"]
[ECO "A13"]
[WhiteElo "1943"]
[BlackElo "1925"]
[Annotator "NA RC"]
[PlyCount "64"]
[EventDate "2024.11.18"]
[EventType "swiss"]
[EventCountry "ITA"]
[SourceTitle "playchess.com"]
[Source "ChessBase"]
[SourceQuality "1"]
[TimeControl "5400+30"]

1. c4 {[%emt 0:00:02]} e6 {[%emt 0:00:06]} 2. d3 {[%emt 0:00:04]} d5 {[%emt 0:00:05]} 3. cxd5 {[%emt 0:00:04]} exd5 {[%emt 0:00:09]} 4. e3 {[%emt 0:00:04]} Nf6 {[%emt 0:00:26]} 5. Be2 {[%emt 0:00:04]} Bd6 {[%emt 0:00:19]} 6. Nf3 {[%emt 0:00:03]} Bg4 {[%emt 0:00:48]} 7. Nbd2 {[%emt 0:00:08]} Nc6 {[%emt 0:01:29]} 8. O-O {[%emt 0:00:07]} O-O {[%emt 0:00:18]} 9. h3 {[%emt 0:00:04]} Bh5 {[%emt 0:00:14]} 10. a3 {[%emt 0:00:11]} Qd7 {[%emt 0:03:30]} 11. b4 {[%emt 0:00:50]} Bxf3 {[%emt 0:03:19]} 12. Nxf3 {[%emt 0:01:19]} Ne5 {[%emt 0:01:00]} 13. Bb2 {[%emt 0:00:35]} Qe7 {[%emt 0:02:52]} 14. Nxe5 {[%emt 0:00:17]} Bxe5 {[%emt 0:00:07]} 15. Bxe5 {[%emt 0:00:14]} Qxe5 {[%emt 1:23:18]} 16. d4 {[%emt 0:00:53]} Qe7 {[%emt 0:00:00]} 17. f3 {[%emt 0:01:54]} Qxe3+ {[%emt 0:00:00]} 18. Kh1 {[%emt 0:00:17]} Nh5 {[%emt 0:00:00]} 19. Qe1 {[%emt 0:00:28]} Rfe8 {[%emt 0:00:00]} 20. Ra2 {[%emt 0:00:29]} Nf4 {[%emt 0:00:00]} 21. Qf2 {[%emt 0:04:56]} Nxe2 {[%emt 0:00:00]} 22. Rxe2 {[%emt 0:01:40]} Qxe2 {[%emt 0:00:00]} 23. Qxe2 {[%emt 0:00:58]} Rxe2 {[%emt 0:00:00]} 24. Rc1 {[%emt 0:00:32]} c6 {[%emt 0:00:00]} 25. Kg1 {[%emt 0:00:14]} Ra2 {[%emt 0:00:00]} 26. Rc3 {[%emt 0:00:15]} h5 {[%emt 0:00:00]} 27. Kh2 {[%emt 0:00:15]} h4 {[%emt 0:00:00]} 28. b5 {[%emt 0:01:24]} Rc8 {[%emt 0:00:00]} 29. bxc6 {[%emt 0:01:00]} Rxc6 {[%emt 0:00:00]} 30. Rb3 {[%emt 0:00:31]} Rcc2 {[%emt 0:00:00]} 31. Rxb7 {[%emt 0:00:40]} Rxg2+ {[%emt 0:00:00]} 32. Kh1 {[%emt 0:00:23]} Rgb2 {[%emt 0:00:00]} 0-1